Cogmind - Beta 16 @@@ ROGUE MODE // 2025.12.19 @ 02:55:43 Player: War__Prophet Result: Destroyed by S-43 Plague with Heavy Machine Gun Performance ------------- Evolutions (7) 3500 Regions Visited (14) 2800 Robots Destroyed (39) 195 Value Destroyed (1185) 1185 Prototype IDs (4) 80 Alien Tech Used (0) 0 Bonus (642) 642 TOTAL SCORE: 8402 Bonus ------- Follower Combat Kills 142 Entered DSFs 500 Cogmind --------- Core Integrity 0/1300 Matter 153/300 Energy 75/100 System Corruption 7% Temperature Cool (0) Movement Core (50) Location -3/Research Parts ------- > --- POWER (4) -------- (None) > --- PROPULSION (10) -- (None) > --- UTILITY (5) ------ Experimental Coolant Injector > --- WEAPON (2) ------- (None) > --- INVENTORY (5) ---- Medium Storage Unit Force Booster Powered Hammer Peak State ------------ > --- POWER ------------ Cooled Ion Engine > --- PROPULSION ------- VTOL Module Improved Flight Unit Improved Flight Unit Xenon Bombardment Thruster Nuclear Pulse Thruster Impulse Thruster Impulse Thruster > --- UTILITY ---------- Improved Coolant Injector Advanced Sensor Array Advanced Signal Interpreter System Shield Advanced System Shield > --- WEAPON ----------- Makeshift Axe Makeshift Axe > --- INVENTORY -------- Medium Storage Unit Force Booster Light Armor Plating Heavy Rocket Launcher [Rating: 68] Favorites ----------- Power Cooled Ion Engine Engine Cooled Ion Engine Propulsion Improved Flight Unit Wheel Wheel Hover Unit Improved Hover Unit Flight Unit Improved Flight Unit Utility Heat Sink Device Heat Sink Storage Medium Storage Unit Processor Advanced Signal Interpreter Hackware System Shield Protection Improved Medium Armor Plating Weapon Makeshift Axe Ballistic Gun Assault Rifle Launcher Heavy Rocket Launcher Impact Weapon Mace Slashing Weapon Makeshift Axe Piercing Weapon Makeshift Spear Build | -11 -10 -9 -9 -8 -7 -7 -7 -6 -6 -6 -5 -4 -4 -3 ------- Run | Yrd Mat Mat Sto Mat Fac Low Low Fac Low Low Fac Fac DSF Res Slots Evolved 14 | . . 2 . 2 2 . . 2 . . 2 2 . 2 Power 3 | . . . . . . . . 1 . . . 2 . . Propulsion 8 | . . 2 . 2 2 . . . . . . . . 2 Utility 3 | . . . . . . . . 1 . . 2 . . . Weapon . | . . . . . . . . . . . . . . . Parts Attached 53 | 5 7 5 8 4 2 5 1 1 . . 7 . . 8 Power 3 | 1 . . 1 . . 1 . . . . . . . . Engine 3 | 1 . . 1 . . 1 . . . . . . . . Core . | . . . . . . . . . . . . . . . Reactor . | . . . . . . . . . . . . . . . Propulsion 22 | 2 4 2 5 2 . 1 . 1 . . 1 . . 4 Treads . | . . . . . . . . . . . . . . . Leg . | . . . . . . . . . . . . . . . Wheel 4 | 2 2 . . . . . . . . . . . . . Hover 4 | . 2 2 . . . . . . . . . . . . Flight 14 | . . . 5 2 . 1 . 1 . . 1 . . 4 Utility 17 | 1 2 1 2 1 1 1 . . . . 5 . . 3 Device 7 | . . 1 . 1 . 1 . . . . 2 . . 2 Storage 2 | 1 1 . . . . . . . . . . . . . Processor 2 | . 1 . . . . . . . . . . . . 1 Hackware 3 | . . . . . . . . . . . 3 . . . Protection 3 | . . . 2 . 1 . . . . . . . . . Artifact . | . . . . . . . . . . . . . . . Weapon 11 | 1 1 2 . 1 1 2 1 . . . 1 . . 1 Energy Gun . | . . . . . . . . . . . . . . . Energy Cannon . | . . . . . . . . . . . . . . . Ballistic Gun 1 | 1 . . . . . . . . . . . . . . Ballistic Cannon . | . . . . . . . . . . . . . . . Launcher 2 | . 1 . . . 1 . . . . . . . . . Special Weapon . | . . . . . . . . . . . . . . . Impact Weapon 4 | . . 2 . . . . . . . . 1 . . 1 Slashing Weapon 3 | . . . . 1 . 2 . . . . . . . . Piercing Weapon 1 | . . . . . . . 1 . . . . . . . Special Melee Weapon . | . . . . . . . . . . . . . . . Unidentified Prototypes 4 | . . . 2 . . . . . . . 1 . . 1 Corrupted Parts 1 | . . . 1 . . . . . . . . . . . System Corruption 5 | . . . 5 . . . . . . . . . . . Parts Lost 18 | . 2 . 2 1 . . . . . . 3 . 2 8 Power 2 | . . . . . . . . . . . . . 1 1 Propulsion 9 | . 2 . . 1 . . . . . . 2 . 1 3 Utility 6 | . . . 2 . . . . . . . 1 . . 3 Weapon 1 | . . . . . . . . . . . . . . 1 Highest Loss Streak 4 | . 2 . 1 1 . . . . . . 3 . 2 4 To Critical Strikes . | . . . . . . . . . . . . . . . Average Backups 4 | . 3 5 5 5 5 4 5 4 4 4 4 4 4 4 Power . | . 1 1 1 1 1 1 1 . . . . . . . Propulsion . | . . . . . . . . . . . . . . . Utility 2 | . 1 2 2 2 3 2 3 3 3 3 3 3 3 3 Weapon . | . . 1 1 1 1 1 1 1 1 1 1 1 1 1 Tool/Special . | . . . . . . . . . . . . . . . Unused Backups 6 | . 2 . 2 . . 1 . . . . . . . 1 Power 1 | . . . 1 . . . . . . . . . . . Propulsion 2 | . 2 . . . . . . . . . . . . . Utility 3 | . . . 1 . . 1 . . . . . . . 1 Weapon . | . . . . . . . . . . . . . . . Tool/Special . | . . . . . . . . . . . . . . . Average Slot Usage (%) 74 | . 66 92 82 87 76 82 84 76 86 86 94 73 69 48 Engine 8 | . 14 11 11 9 7 7 7 8 13 13 11 10 10 2 Wheel 1 | . 12 . . . . . . . . . . . . . Hover 2 | . 2 42 2 . . . . . . . . . . . Flight 32 | . . . 39 47 38 44 46 41 46 46 44 31 29 23 Device 6 | . . 4 9 6 7 7 7 6 6 6 10 10 8 5 Storage 1 | . 14 6 . . . . . . . . . . . . Processor 2 | . 8 11 2 . . . . . . . . . . 2 Hackware 2 | . . . . . . . . . . . 9 10 10 5 Protection 3 | . . . 4 11 7 7 7 6 6 6 4 . . . Ballistic Gun 1 | . 13 . . . . . . . . . . . . . Impact Weapon 4 | . . 15 13 9 7 1 . . . . . . . . Slashing Weapon 5 | . . . . 4 6 13 15 13 13 13 11 10 10 5 Peak Build Rating 68 | 5 9 15 19 26 29 39 36 44 44 44 65 55 55 68 Average Rating 33 | 3 4 14 17 23 28 34 35 39 44 44 57 55 51 52 On Entrance 30 | . 5 7 15 19 26 29 36 36 44 44 44 55 55 44 Avg Prop Armor Cover (%) 18 | . . . 10 . . . . . . . . . . 26 Naked Turns 24 | . . . . . . . . . . . . . . 24 Heaviest Build 36 | 10 18 17 16 16 20 23 22 30 30 30 36 29 29 16 Greatest Support 41 | 20 24 28 28 30 25 31 31 37 37 37 41 31 31 40 Greatest Overweight (x) 5 | . 5 . 1 . . . . . . . . . . . Average Overweight (x) . | . . . . . . . . . . . . . . . Largest Inventory Capacity 10 | 8 10 10 5 5 5 5 5 5 5 5 5 5 5 5 Average Capacity 5 | 7 9 7 5 5 5 5 5 5 5 5 5 5 5 5 Most Carried 8 | 1 8 6 5 5 5 5 5 5 4 4 5 4 5 5 Average Carried 4 | . 3 5 5 4 5 4 5 4 4 4 4 4 4 4 Final Capacity 10 | 8 10 5 5 5 5 5 5 5 5 5 5 5 5 5 Final Carried 7 | 1 7 5 5 5 5 5 5 4 4 4 4 4 5 3 Class Distribution -------------------- 42% | Sprinter 26% | Mutant 23% | Hacker-Sprinter 6% | Commander-Sprinter Dominant Class ---------------- Mutant | -10/Materials Mutant | -9/Materials Sprinter | -9/Storage Sprinter | -8/Materials Sprinter | -7/Factory Sprinter | -7/Lower Caves Sprinter | -7/Lower Caves Sprinter | -6/Factory Sprinter | -6/Lower Caves Sprinter | -6/Lower Caves Hacker-Sprinter | -5/Factory Hacker-Sprinter | -4/Factory Hacker-Sprinter | -4/DSF Hacker-Sprinter | -3/Research Resources | -11 -10 -9 -9 -8 -7 -7 -7 -6 -6 -6 -5 -4 -4 -3 ----------- Run | Yrd Mat Mat Sto Mat Fac Low Low Fac Low Low Fac Fac DSF Res Matter Collected 822 | 199 26 . 265 30 62 89 27 . 20 . 74 . 21 9 Remotely . | . . . . . . . . . . . . . . . Salvage Created 1306 | . 26 . 399 35 321 . . . . . 310 . . 215 Parts 51 | . 1 . 13 . 11 . . . . . 20 . . 6 Haulers Intercepted 4 | . . . 3 . . . . . . . 1 . . . Recyclers Shooed 1 | 1 . . . . . . . . . . . . . . Parts Field Recycled . | . . . . . . . . . . . . . . . Retrieved Matter . | . . . . . . . . . . . . . . . Parts Self-Destructed . | . . . . . . . . . . . . . . . Prevented . | . . . . . . . . . . . . . . . Parts Restored . | . . . . . . . . . . . . . . . Kills | -11 -10 -9 -9 -8 -7 -7 -7 -6 -6 -6 -5 -4 -4 -3 ------- Run | Yrd Mat Mat Sto Mat Fac Low Low Fac Low Low Fac Fac DSF Res Combat Hostiles Destroyed 17 | . . . 6 . 3 . . . . . 4 . . 4 Melee 3 | . . . 3 . . . . . . . . . . . AOE 10 | . . . . . 3 . . . . . 4 . . 3 Classes Destroyed 13 | . 1 . 6 . 3 . . . . . 1 . . 2 Worker 4 | . . . . . 1 . . . . . 3 . . . Builder 1 | . . . . . . . . . . . 1 . . . Tunneler 1 | . . . . . 1 . . . . . . . . . Hauler 4 | . . . 3 . . . . . . . 1 . . . Recycler 5 | . . . 1 . 3 . . . . . . . . 1 Mechanic 1 | . . . . . 1 . . . . . . . . . Operator 2 | . . . 1 . . . . . . . 1 . . . Watcher 4 | . 1 . 1 1 1 . . . . . . . . . Swarmer 4 | . . . 3 . . . . . . . 1 . . . Cutter 3 | . . . . . . . . . . . . . . 3 Grunt 7 | . . . 1 . 3 . . . . . 3 . . . Sentry 2 | . . . 2 . . . . . . . . . . . Hunter 1 | . . . . . . . . . . . . . . 1 Best Kill Streak 8 | . 1 . 4 1 8 . . . . . 7 . . 3 Combat Bots Only 4 | . . . 2 . 3 . . . . . 4 . . 3 Max Kills in Single Turn 5 | . 1 . 1 1 3 . . . . . 5 . . 2 Gunslinging . | . . . . . . . . . . . . . . . Exploded 4 | . . . . . 2 . . . . . 4 . . 2 Melee 1 | . . . 1 . . . . . . . . . . . Uniques/NPCs Destroyed . | . . . . . . . . . . . . . . . Combat | -11 -10 -9 -9 -8 -7 -7 -7 -6 -6 -6 -5 -4 -4 -3 -------- Run | Yrd Mat Mat Sto Mat Fac Low Low Fac Low Low Fac Fac DSF Res Hostile Shots Fired 327 | . . 6 72 31 5 14 9 . 3 . 12 . 6 169 Missed 170 | . . . 36 19 2 8 6 . 3 . 9 . 3 84 Hits 157 | . . 6 36 12 3 6 3 . . . 3 . 3 85 Melee 11 | . . . . . . . . . . . . . . 11 Projectile 146 | . . 6 36 12 3 6 3 . . . 3 . 3 74 AOE 1 | . . . . . . . . . . . . . . 1 Critical Strikes 10 | . . . 1 . 1 1 . . . . . . . 7 Damage Taken 3370 | . 176 81 336 142 55 90 28 . . . 350 . 93 2019 Core 1600 | . . 7 136 41 17 14 . . . . 67 . . 1318 Absorbed by Shields . | . . . . . . . . . . . . . . . Core Remaining (%) 93 | 100 100 . 64 92 . . 95 . . 100 93 . 100 . Volleys Fired 17 | . 9 . . . 4 . . . . . 1 . . 3 Largest 2 | . 2 . . . 1 . . . . . 1 . . 1 Hottest 50 | . 50 . . . 39 . . . . . 39 . . 39 Shots Fired 18 | . 10 . . . 4 . . . . . 1 . . 3 Gun 9 | . 9 . . . . . . . . . . . . . Cannon . | . . . . . . . . . . . . . . . Launcher 9 | . 1 . . . 4 . . . . . 1 . . 3 Special . | . . . . . . . . . . . . . . . Kinetic 9 | . 9 . . . . . . . . . . . . . Thermal . | . . . . . . . . . . . . . . . Explosive 9 | . 1 . . . 4 . . . . . 1 . . 3 Electromagnetic . | . . . . . . . . . . . . . . . Robot Hit Streak 4 | . 3 . . . 4 . . . . . . . . 1 Robot Miss Streak 2 | . 1 . . . . . . . . . . . . 2 Penetration Max . | . . . . . . . . . . . . . . . Secondary Targets . | . . . . . . . . . . . . . . . Shots Hit Robots 52 | . 5 . 26 1 5 . . . . . 9 . 2 4 Core Hits 35 | . 2 . 3 1 14 . . . . . 9 . . 6 Critical Kills . | . . . . . . . . . . . . . . . Critical Parts Destroyed 2 | . . . 1 . . . . . . . . . . 1 Critical Strikes 3 | . . . 1 . . . . . . . . . 1 1 Smash 2 | . . . 1 . . . . . . . . . . 1 Sever 1 | . . . . . . . . . . . . . 1 . Melee Attacks 116 | . . 4 45 4 7 . . 2 . . 24 . 2 28 Impact 55 | . . 4 45 1 . . . . . . . . . 5 Slashing 61 | . . . . 3 7 . . 2 . . 24 . 2 23 Piercing . | . . . . . . . . . . . . . . . Sneak Attacks 13 | . . . 5 . 1 . . . . . 6 . . 1 Combat Hostiles 1 | . . . 1 . . . . . . . . . . . Follow-up Attacks 6 | . . . 4 . . . . . . . 2 . . . Damage Inflicted 3990 | . 51 . 931 26 1059 . . . . . 1398 . 90 435 Guns 51 | . 51 . . . . . . . . . . . . . Cannons . | . . . . . . . . . . . . . . . Explosions 1819 | . . . . . 906 . . . . . 667 . . 246 Melee 2120 | . . . 931 26 153 . . . . . 731 . 90 189 Ramming . | . . . . . . . . . . . . . . . Kinetic 51 | . 51 . . . . . . . . . . . . . Thermal 667 | . . . . . . . . . . . 667 . . . Explosive 1152 | . . . . . 906 . . . . . . . . 246 Electromagnetic . | . . . . . . . . . . . . . . . Impact 1062 | . . . 931 26 . . . . . . . . . 105 Slashing 1058 | . . . . . 153 . . . . . 731 . 90 84 Piercing . | . . . . . . . . . . . . . . . Highest Corruption 7 | . . . 5 . 2 2 2 . . . . . . 7 Average Corruption 4 | . . . 5 . 2 2 2 . . . . . . 6 Corruption Purged . | . . . . . . . . . . . . . . . Corruption Blocked . | . . . . . . . . . . . . . . . Effects 19 | . . . 8 . 1 3 . . . . . . . 7 Message Errors 5 | . . . 3 . 1 . . . . . . . . 1 Matter Fused 5 | . . . 1 . . 1 . . . . . . . 3 Heat Flow Errors 1 | . . . . . . 1 . . . . . . . . Data Loss (minor) 5 | . . . 3 . . 1 . . . . . . . 1 Data Loss (major) 3 | . . . 1 . . . . . . . . . . 2 Overload Shots . | . . . . . . . . . . . . . . . Overflow Damage 660 | . 41 . 244 . 80 . . . . . 239 . . 56 Projectiles . | . . . . . . . . . . . . . . . Explosions 148 | . 41 . . . 80 . . . . . 23 . . 4 Melee 512 | . . . 244 . . . . . . . 216 . . 52 Knockbacks 3 | . . . 3 . . . . . . . . . . . Impact 3 | . . . 3 . . . . . . . . . . . Kinetic . | . . . . . . . . . . . . . . . Secondary . | . . . . . . . . . . . . . . . Self-Inflicted Damage 396 | . 177 . . . . . . . . . 67 . . 152 Shots 7 | . 3 . . . . . . . . . 1 . . 3 Rammed 2 | 1 . . . . . . . . . . 1 . . . Targets Rammed 2 | 1 . . . . . . . . . . 1 . . . Kicked . | . . . . . . . . . . . . . . . Crushed . | . . . . . . . . . . . . . . . Highest Temperature 193 | . 4 . 8 16 12 193 4 16 174 14 116 1 . 34 Average Temperature 44 | . 4 . 4 8 12 120 4 6 87 8 28 1 . 8 Received Heat Transfer 180 | . . 18 69 36 45 . 12 . . . . . . . Siege Activations . | . . . . . . . . . . . . . . . Martial Activations . | . . . . . . . . . . . . . . . Shielding Activations . | . . . . . . . . . . . . . . . Robots Disrupted . | . . . . . . . . . . . . . . . Combat Hostiles . | . . . . . . . . . . . . . . . Robots Corrupted 8 | . . . 7 . . . . . . . . . . 1 Combat Hostiles 4 | . . . 3 . . . . . . . . . . 1 Parts Fried 14 | . . . 12 . . . . . . . . . . 2 Impact Corruptions 14 | . . . 13 . . . . . . . . . . 1 Robots Melted . | . . . . . . . . . . . . . . . Combat Hostiles . | . . . . . . . . . . . . . . . Parts Melted . | . . . . . . . . . . . . . . . Heat Transferred 500 | . . . . . . . . . . . 500 . . . Parts Sabotaged . | . . . . . . . . . . . . . . . Parts Stolen . | . . . . . . . . . . . . . . . Parts Stripped . | . . . . . . . . . . . . . . . Power Chain Reactions . | . . . . . . . . . . . . . . . Alert | -11 -10 -9 -9 -8 -7 -7 -7 -6 -6 -6 -5 -4 -4 -3 ------- Run | Yrd Mat Mat Sto Mat Fac Low Low Fac Low Low Fac Fac DSF Res Maximum Alert Level 2 | . . . 1 1 2 . . . . . 2 1 . . Low Security (%) 83 | 100 100 100 84 66 82 . . 100 . . 30 . 100 100 Level 1 10 | . . . 15 33 6 . . . . . 19 100 . . Level 2 5 | . . . . . 11 . . . . . 49 . . . Level 3 . | . . . . . . . . . . . . . . . Level 4 . | . . . . . . . . . . . . . . . Level 5 . | . . . . . . . . . . . . . . . High Security . | . . . . . . . . . . . . . . . Max Security . | . . . . . . . . . . . . . . . Peak Influence 548 | . 51 15 396 274 440 . . 148 . . 548 242 172 153 Initial 242 | . . . . 160 124 . . 94 . . 68 242 172 79 Average 123 | . 16 1 141 177 173 . . 114 . . 352 242 161 57 Influence Increases 2609 | . 89 15 690 344 366 30 . 74 90 . 567 5 . 339 Destroy 0b10 Robot/C 540 | . . . 240 80 60 . . . . . 80 . . 80 Destroy 0b10 Robot/NC 120 | . 5 . 30 15 35 . . . . . 30 . . 5 Destroy Leader 116 | . 2 . 68 12 12 . . . . . 12 . . 10 Allied During Kill 95 | . . . 76 19 . . . . . . . . . . Successful Hack 67 | . . . 4 20 . . . 14 . . 24 5 . . Disable Machine 435 | . 45 15 45 . 165 . . 15 . . 120 . . 30 Destroy Structure 231 | . 37 . 2 3 49 . . . . . 76 . . 64 Partial Spotted 135 | . . . 30 15 15 . . 45 . . 30 . . . Lose Combat Pursuer 870 | . . . 195 180 30 30 . . 90 . 195 . . 150 Influence Decreases 2469 | . 89 15 310 450 210 250 60 86 92 27 181 253 105 341 Entered New Map 1137 | . . . . 220 150 160 40 56 52 27 41 253 75 63 Time Decay 960 | . 69 15 230 100 60 90 20 30 40 . 100 . . 206 Lost Part 172 | . 20 . 20 10 . . . . . . 30 . 20 72 Lost Ally 200 | . . . 60 120 . . . . . . 10 . 10 . Squads Dispatched 14 | . . . 2 3 1 . . . . . 3 . . 5 Investigation 4 | . . . 1 1 1 . . . . . . . . 1 Extermination 3 | . . . . . . . . . . . 1 . . 2 Reinforcement 6 | . . . 1 1 . . . . . . 2 . . 2 Assault . | . . . . . . . . . . . . . . . Garrison 1 | . . . . 1 . . . . . . . . . . Intercept . | . . . . . . . . . . . . . . . Searches Triggered . | . . . . . . . . . . . . . . . Construction Impeded . | . . . . . . . . . . . . . . . Haulers Reinforced . | . . . . . . . . . . . . . . . Active Scanning Responses . | . . . . . . . . . . . . . . . Cargo Convoy Interrupts . | . . . . . . . . . . . . . . . Stealth | -11 -10 -9 -9 -8 -7 -7 -7 -6 -6 -6 -5 -4 -4 -3 --------- Run | Yrd Mat Mat Sto Mat Fac Low Low Fac Low Low Fac Fac DSF Res Distress Signals 7 | . . 1 2 2 . . . . . . 1 . . 1 Communications Jammed . | . . . . . . . . . . . . . . . Distress Signals . | . . . . . . . . . . . . . . . Times Spotted 135 | . 2 6 24 24 7 8 1 2 6 . 20 . 6 29 Peak Tracking Total 13 | . 2 2 8 11 4 6 1 . 3 . 9 . 4 13 Tactical Retreats 20 | . . . 5 2 1 2 . . 2 . 4 . . 4 Traps | -11 -10 -9 -9 -8 -7 -7 -7 -6 -6 -6 -5 -4 -4 -3 ------- Run | Yrd Mat Mat Sto Mat Fac Low Low Fac Low Low Fac Fac DSF Res Traps Triggered 3 | . . . . 1 1 . . . . . 1 . . . Indirectly . | . . . . . . . . . . . . . . . Trap Hack Attempts . | . . . . . . . . . . . . . . . Triggered . | . . . . . . . . . . . . . . . Disarmed . | . . . . . . . . . . . . . . . Reprogrammed . | . . . . . . . . . . . . . . . Reused . | . . . . . . . . . . . . . . . Traps Extracted . | . . . . . . . . . . . . . . . Installed . | . . . . . . . . . . . . . . . Triggered . | . . . . . . . . . . . . . . . Machines | -11 -10 -9 -9 -8 -7 -7 -7 -6 -6 -6 -5 -4 -4 -3 ---------- Run | Yrd Mat Mat Sto Mat Fac Low Low Fac Low Low Fac Fac DSF Res Machines Disabled 29 | . 3 1 3 . 11 . . 1 . . 8 . . 2 Max in Single Turn 6 | . 2 1 1 . 6 . . 1 . . 6 . . 1 Machines Repaired . | . . . . . . . . . . . . . . . Machines Dismantled . | . . . . . . . . . . . . . . . Machines Sabotaged . | . . . . . . . . . . . . . . . Overloaded Fab Kills . | . . . . . . . . . . . . . . . Hacking | -11 -10 -9 -9 -8 -7 -7 -7 -6 -6 -6 -5 -4 -4 -3 --------- Run | Yrd Mat Mat Sto Mat Fac Low Low Fac Low Low Fac Fac DSF Res Machines Accessed 21 | . . . 4 6 1 1 . 1 . . 3 3 . 2 Terminals 17 | . . . 4 5 1 . . 1 . . 1 3 . 2 Fabricators 2 | . . . . . . . . . . . 2 . . . Repair Stations . | . . . . . . . . . . . . . . . Recycling Units . | . . . . . . . . . . . . . . . Scanalyzers 1 | . . . . 1 . . . . . . . . . . Garrison Access . | . . . . . . . . . . . . . . . Total Hacks 39 | . . . 6 10 3 1 . 1 . . 6 5 . 7 Successful 19 | . . . 3 7 . 1 . 1 . . 3 2 . 2 Failed 20 | . . . 3 3 3 . . . . . 3 3 . 5 Catastrophic 4 | . . . 1 . 1 . . . . . . 1 . 1 Database Lockouts . | . . . . . . . . . . . . . . . Manual 25 | . . . 4 8 3 . . 1 . . 4 4 . 1 Terminals 33 | . . . 6 8 3 . . 1 . . 3 5 . 7 Fabricators 3 | . . . . . . . . . . . 3 . . . Repair Stations . | . . . . . . . . . . . . . . . Recycling Units . | . . . . . . . . . . . . . . . Scanalyzers 2 | . . . . 2 . . . . . . . . . . Garrison Access . | . . . . . . . . . . . . . . . Terminal Hacks 5 | . . . . . . 1 . . . . 1 1 . 2 Open Door 1 | . . . . . . 1 . . . . . . . . Open DSF 3 | . . . . . . . . . . . 1 1 . 1 Branch Access Points 1 | . . . . . . . . . . . . . . 1 Fabricator Hacks . | . . . . . . . . . . . . . . . Repair Station Hacks . | . . . . . . . . . . . . . . . Recycling Unit Hacks . | . . . . . . . . . . . . . . . Scanalyzer 2 | . . . . 2 . . . . . . . . . . Retrieve Study 2 | . . . . 2 . . . . . . . . . . Garrison Access Hacks . | . . . . . . . . . . . . . . . Unauthorized Hacks 12 | . . . 3 5 . . . 1 . . 2 1 . . Terminals 10 | . . . 3 5 . . . 1 . . . 1 . . Skim 10 | . . . 3 5 . . . 1 . . . 1 . . Fabricators 2 | . . . . . . . . . . . 2 . . . Liberate 2 | . . . . . . . . . . . 2 . . . Repair Stations . | . . . . . . . . . . . . . . . Recycling Units . | . . . . . . . . . . . . . . . Scanalyzers . | . . . . . . . . . . . . . . . Garrison Access . | . . . . . . . . . . . . . . . Data Cores Recovered . | . . . . . . . . . . . . . . . Used . | . . . . . . . . . . . . . . . Hacking Detections 7 | . . . 1 2 1 . . . . . 2 . . 1 Full Trace Events 3 | . . . 1 . 1 . . . . . . . . 1 Feedback Events . | . . . . . . . . . . . . . . . Feedback Blocked . | . . . . . . . . . . . . . . . Robot Schematics Acquired . | . . . . . . . . . . . . . . . Robots Built . | . . . . . . . . . . . . . . . Authchips . | . . . . . . . . . . . . . . . Time . | . . . . . . . . . . . . . . . Total Robot Build Rating . | . . . . . . . . . . . . . . . Part Schematics Acquired . | . . . . . . . . . . . . . . . Parts Built . | . . . . . . . . . . . . . . . Authchips . | . . . . . . . . . . . . . . . Time . | . . . . . . . . . . . . . . . Total Part Build Rating . | . . . . . . . . . . . . . . . Part Studies Acquired 2 | . . . . 2 . . . . . . . . . . Parts Repaired . | . . . . . . . . . . . . . . . Time . | . . . . . . . . . . . . . . . Parts Recycled . | . . . . . . . . . . . . . . . Recycled Matter . | . . . . . . . . . . . . . . . Retrieved Matter . | . . . . . . . . . . . . . . . Retrieved Components . | . . . . . . . . . . . . . . . Parts Scanalyzed . | . . . . . . . . . . . . . . . Part Schematics Acquired . | . . . . . . . . . . . . . . . Parts Damaged . | . . . . . . . . . . . . . . . Bothacking | -11 -10 -9 -9 -8 -7 -7 -7 -6 -6 -6 -5 -4 -4 -3 ------------ Run | Yrd Mat Mat Sto Mat Fac Low Low Fac Low Low Fac Fac DSF Res Used RIF Installer . | . . . . . . . . . . . . . . . Robots Hacked . | . . . . . . . . . . . . . . . Non-combat . | . . . . . . . . . . . . . . . Combat . | . . . . . . . . . . . . . . . Robot Hacks Applied . | . . . . . . . . . . . . . . . Relay Couplers Released . | . . . . . . . . . . . . . . . Fabnet Peak Effective % . | . . . . . . . . . . . . . . . Robots Rewired . | . . . . . . . . . . . . . . . Allies Hacked . | . . . . . . . . . . . . . . . Hacks Repelled . | . . . . . . . . . . . . . . . Allies | -11 -10 -9 -9 -8 -7 -7 -7 -6 -6 -6 -5 -4 -4 -3 -------- Run | Yrd Mat Mat Sto Mat Fac Low Low Fac Low Low Fac Fac DSF Res Total Allies 10 | . . . 10 . . . . . . . . . . . Largest Group 10 | . . . 10 7 . . . . . . . . . . Highest-Rated Group 88 | . . . 88 64 . . . . . . . . . . Highest-Rated Ally 16 | . . . 16 16 . . . . . . . . . . Total Orders 2 | . . . . . . . . . . . 1 . 1 . EXPLORE 2 | . . . . . . . . . . . 1 . 1 . Ally Attacks 65 | . . . 33 32 . . . . . . . . . . Total Damage 465 | . . . 206 259 . . . . . . . . . . Kills 13 | . . . 6 7 . . . . . . . . . . Allies Corrupted . | . . . . . . . . . . . . . . . Allies Melted . | . . . . . . . . . . . . . . . Intel | -11 -10 -9 -9 -8 -7 -7 -7 -6 -6 -6 -5 -4 -4 -3 ------- Run | Yrd Mat Mat Sto Mat Fac Low Low Fac Low Low Fac Fac DSF Res Active Infowar (turns) 848 | . . 42 451 . . . . . . . . . . 355 Sensors 848 | . . 42 451 . . . . . . . . . . 355 Robot Analysis Total . | . . . . . . . . . . . . . . . Derelict Logs Recovered 1 | . . . . . . 1 . . . . . . . . Drone Launches 3 | . . . . . . . . . . . 2 . 1 . Drone Recoveries 1 | . . . . . . . . . . . 1 . . . Exploration | -11 -10 -9 -9 -8 -7 -7 -7 -6 -6 -6 -5 -4 -4 -3 ------------- Run | Yrd Mat Mat Sto Mat Fac Low Low Fac Low Low Fac Fac DSF Res Turns Passed 2429 | 39 216 81 532 206 123 199 42 68 97 9 206 16 23 572 Spaces Moved 4578 | 38 149 103 602 443 311 678 53 216 440 41 541 65 42 856 Core 87 | 3 34 . . . . . . . . . . . . 50 Treads . | . . . . . . . . . . . . . . . Legs . | . . . . . . . . . . . . . . . Wheels 128 | 35 93 . . . . . . . . . . . . . Hover 153 | . 22 103 28 . . . . . . . . . . . Flight 4210 | . . . 574 443 311 678 53 216 440 41 541 65 42 806 Fastest Speed 18 | 50 56 48 31 25 28 25 25 22 22 22 18 24 24 21 Average Speed 30 | 77 117 48 32 26 28 25 25 24 22 22 19 24 25 31 Slowest Speed 300 | 80 300 48 110 31 28 28 25 25 22 22 24 24 27 50 Overloaded Moves . | . . . . . . . . . . . . . . . Propulsion Burnouts . | . . . . . . . . . . . . . . . Robots Hopped 12 | . . . 3 5 . . . . . . 3 . . 1 Potential Cave-ins . | . . . . . . . . . . . . . . . Cave-ins Triggered . | . . . . . . . . . . . . . . . Exploration Rate (%) 26 | 3 23 10 61 40 10 79 7 6 59 12 18 2 46 27 Regions Visited 14 Branch Regions 5 Pre-discovered Areas 1 | . . . . . . 1 . . . . . . . . Known Exits Taken 3 | . 1 1 . . . . . . . . . 1 . . Unknown Exits Taken 10 | 1 . . 1 1 1 1 1 1 1 1 1 . . . Scrap Searched 9 | . . . . . . 3 2 . 3 1 . . . . Spaces Dug 29 | . . . 2 3 3 . . . . . 3 . . 18 Terrain Destroyed 170 | . 42 . 2 3 56 . . . . . 36 . . 31 Melee 29 | . . . 2 3 3 . . . . . 3 . . 18 Projectile . | . . . . . . . . . . . . . . . AOE 141 | . 42 . . . 53 . . . . . 33 . . 13 Terrain Rammed . | . . . . . . . . . . . . . . . Walls Destroyed . | . . . . . . . . . . . . . . . Machines Disabled . | . . . . . . . . . . . . . . . Actions | -11 -10 -9 -9 -8 -7 -7 -7 -6 -6 -6 -5 -4 -4 -3 --------- Run | Yrd Mat Mat Sto Mat Fac Low Low Fac Low Low Fac Fac DSF Res Total 5406 | 44 180 127 860 518 330 704 80 229 439 40 611 64 52 1128 Wait 612 | . . 15 202 68 5 15 24 11 . . 34 . 8 230 Move 4542 | 37 148 102 595 433 310 677 52 215 439 40 535 64 41 854 Hop 11 | . . . 3 4 . . . . . . 3 . . 1 Pick Up 14 | 1 6 . 2 3 . 1 . . . . . . . 1 Fast Attach 50 | 5 7 3 8 2 1 4 2 1 . . 8 . . 9 Attach 10 | . . 2 . 2 . . . 1 . . 1 . . 4 Detach 11 | . 5 1 . . . . . . . . 2 . 1 2 Swap 7 | . . . 1 . 2 2 . . . . 2 . . . Drop 28 | . 5 1 8 2 1 5 2 . . . 3 . . 1 Fire 17 | . 9 . . . 4 . . . . . 1 . . 3 Melee 103 | . . 3 41 4 7 . . 1 . . 22 . 2 23 Ram 1 | 1 . . . . . . . . . . . . . . Kick . | . . . . . . . . . . . . . . . Crush . | . . . . . . . . . . . . . . . Escape Stasis . | . . . . . . . . . . . . . . . Rewire . | . . . . . . . . . . . . . . . Trap . | . . . . . . . . . . . . . . . Miscellaneous . | . . . . . . . . . . . . . . . Route ------- -11/Scrapyard -10/Materials -9/Materials -9/Storage -8/Materials -7/Factory -7/Lower Caves -7/Lower Caves -6/Factory -6/Lower Caves -6/Lower Caves -5/Factory -4/Factory (discovered 2 exits: *Res / DSF) -4/DSF -3/Research (discovered 2 exits: Qua x2) History --------- Turn | Location | Event 11 | -11/Scrapyard | Discovered new exit (range 15) 40 | -11/Scrapyard | Entered Materials 250 | -10/Materials | Discovered new exit (range 8) 255 | -10/Materials | Identified exit to Materials 256 | -10/Materials | Entered another Materials area 256 | -9/Materials | Evolved 2 slots: Propulsion x2 282 | -9/Materials | Discovered new exit (range 16) 316 | -9/Materials | Build established: Mutant 336 | -9/Materials | Identified exit to Storage 337 | -9/Materials | Entered Storage 763 | -9/Storage | Assisted by bots powering up and referring to "LRC-V3" 816 | -9/Storage | Discovered new exit (range 16) 851 | -9/Storage | Lost 3 allies 869 | -9/Storage | Entered Materials 869 | -8/Materials | Accompanied by 7 allies 869 | -8/Materials | Evolved 2 slots: Propulsion x2 919 | -8/Materials | Garrison activated, responded to threat 970 | -8/Materials | Lost 7 allies 1057 | -8/Materials | Discovered new exit (range 9) 1075 | -8/Materials | Entered Factory 1075 | -7/Factory | Evolved 2 slots: Propulsion x2 1196 | -7/Factory | Discovered new exit (range 8) 1198 | -7/Factory | Entered Lower Caves 1229 | -7/Lower Caves | Spotted B-75 Beast 1262 | -7/Lower Caves | Build established: Sprinter 1310 | -7/Lower Caves | Learned location of Zion (-7) 1393 | -7/Lower Caves | Discovered new exit (range 14) 1397 | -7/Lower Caves | Entered another Lower Caves area 1435 | -7/Lower Caves | Discovered new exit (range 14) 1439 | -7/Lower Caves | Attracted the attention of an 0b10 checkpoint 1439 | -7/Lower Caves | Entered Factory 1439 | -6/Factory | Evolved 2 slots: Power x1, Utility x1 1488 | -6/Factory | Discovered new exit (range 6) 1507 | -6/Factory | Entered Lower Caves 1508 | -6/Lower Caves | Encountered a Warlord checkpoint 1603 | -6/Lower Caves | Discovered new exit (range 7) 1604 | -6/Lower Caves | Entered another Lower Caves area 1610 | -6/Lower Caves | Discovered new exit (range 12) 1613 | -6/Lower Caves | Entered Factory 1613 | -5/Factory | Evolved 2 slots: Utility x2 1770 | -5/Factory | Discovered new exit (range 21) 1819 | -5/Factory | Entered another Factory area 1819 | -4/Factory | Evolved 2 slots: Power x2 1829 | -4/Factory | Discovered new exit (range 13) 1835 | -4/Factory | Identified exit to DSF 1835 | -4/Factory | Entered DSF 1835 | -4/DSF | Encountered a pitched battle between 0b10 and Warlord forces 1837 | -4/DSF | Spotted B-86 Titan 1847 | -4/DSF | Discovered new exit (range 25) 1848 | -4/DSF | Lost 3 parts (2n1u) 1858 | -4/DSF | Entered Research 1858 | -3/Research | Evolved 2 slots: Propulsion x2 1888 | -3/Research | Lost 11 allies 1957 | -3/Research | Build established: Hacker-Sprinter 2214 | -3/Research | Identified exit to Quarantine 2232 | -3/Research | Released all parts (11) 2263 | -3/Research | Lost 4 parts (1p1n2u) 2371 | -3/Research | Core integrity fell below 50% 2422 | -3/Research | Core integrity fell below 20% 2430 | -3/Research | Destroyed by S-43 Plague with Heavy Machine Gun Last Messages --------------- effect. 02371_ H-77 Assassin system terminally corrupted. 02371_ Imp. Targeting Computer fried. 02371_ Imp. Phase Shifter fried. 02372_ Penetrated by Slug. 02381_ Slug penetrates Garrison Access. 02381_ Slug penetrates Wall. 02381_ Slug penetrates Garrison Access. 02389_ System corrupted: Matter fused (-9). 02393_ ALERT: Hostiles spotted, dispatching reinforcements to Terminal R009. 02399_ Impulse Thruster Array destroyed. 02401_ ALERT: Potential suspicious activity detected, Programmers report to Research Zone 5M. 02407_ Acquired Prototype Device. 02407_ Identified Exp. Coolant Injector. 02410_ Hvy. Rocket Launcher destroyed. 02416_ System corrupted: Matter fused (-7). 02418_ Lgt. Armor Plating destroyed. 02428_ Impulse Thruster Array destroyed. Map ----- +----------------------------------------------------+ | ??????????????# ####?????????????????? | | ??????????????# #????????????????????? | | ??????????????# #????????????????????? | | ??????????????# #????????????????????? | | ??????????????# #########????????????? | | ??????????????# ???????????? | | ??????????????+ ???????????? | | ??????????????# ??????????? | | ??????????????# ??????????? | | ??????????????# ]] ??????????? | | ??????????????# ]! ??????????? | | ??????????????# ! ?????????? | | ??????????????# ?????????? | | ??????????????# ?????????? | | ??????????????# ### s ?????????? | | ??????????????# #?# s#######+#????????????? | | ??????????????# #?# s #????????????????????? | | ??????????????######?# +????????????????????? | | ?????????????????????# #????????????????????? | | ?????????????????????# #????????????????????? | | ?????????????????????# #????????????????????? | | ?????????????????????#sss #????????????????????? | | ?????????????????????# s #????????????????????? | | ?????????????????????# #????????????????????? | | ?????????????????????# +????????????????????? | | ?????????????????????# @ #????????????????????? | | ?????????????????????# #????????????????????? | | ???????????????????? #????????????????????? | | ???????????????????####+###????????????????????? | | ???????????????????????????????????????????????? | | ???????????????????????????????????????????????? | | ???????????????????????????????????????????????? | | ???????????????????????????????????????????????? | | ???????????????????????????????????????????????? | | ???????????????????????????????????????????????? | | ???????????????????????????????????????????????? | | ???????????????????????????????????????????????? | | ???????????????????????????????????????????????? | | ???????????????????????????????????????????????? | | ???????????????????????????????????????????????? | | ???????????????????????????????????????????????? | | ???????????????????????????????????????????????? | | ???????????????????????????????????????????????? | | ???????????????????????????????????????????????? | | ???????????????????????????????????????????????? | | ???????????????????????????????????????????????? | | ???????????????????????????????????????????????? | | ???????????????????????????????????????????????? | | ???????????????????????????????????????????????? | | ???????????????????????????????????????????????? | +----------------------------------------------------+ Best States ------------- Heat Dissipation 61 Coolant Potential 120 Energy Generation 23 Energy Capacity 460 Matter Stores 300 Matter Capacity 300 Sight Range 16 Robot Scan Range 16 Terrain Scan Density 10 Armor Coverage 300 Evasion (%) 66 Defensive Hacking 24 Item Schematics ----------------- None Robot Schematics ------------------ None Fabricated ------------ Nothing Repaired ---------- Nothing Studied --------- Flight Unit | -8/Materials | Hacked Mace | -8/Materials | Hacked Alien Tech Used ----------------- None Achievements -------------- Plot Armor Challenges ------------ None Game ------ Seed CombatIntegratedScythe Manual? 0 Play Time 00:43:39 Cumulative 53.1 hours Start 2025.12.19 @ 02:19:41 End 2025.12.19 @ 02:55:43 Sessions 1 Manual Loads 0 Difficulty Rogue Special Mode None Game No. 203 Rogue 203 Adventurer 0 Explorer 0 Win Type - Total 0 Types 0/0/0/0/0/0/0/0/0/0 Lore% 12 Gallery% 38 Achievement% 25 Wizard Run 0 Options --------- Layout 1 ASCII 0 Keyboard 1 Movement Vi Keybinds 0 Fullscreen 1 Font 16/SmallcapsGlow Map View 55x38 Zoom Use 0% Tactical HUD 1 Map Filters NONE Filters NONE Steam X RUN: 72df6ccc-6d43-44f4-a607-29f9c84d8542